[Event "11th Dolomiti Open 2020"]
[Site "Forni di Sopra"]
[Date "2020.10.01"]
[Round "7.6"]
[White "Seresin, Francesco"]
[Black "Fecker, Noah"]
[Result "1-0"]
[ECO "A34"]
[WhiteElo "2371"]
[BlackElo "2345"]
[Annotator "ChessBase"]
[PlyCount "69"]
[EventDate "2020.09.26"]
[EventType "swiss"]
[EventCountry "ITA"]
[SourceTitle "playchess.com"]
[Source "ChessBase"]
[SourceQuality "1"]
[TimeControl "40/5400+30:1800+30"]

1. c4 {[%emt 0:00:01]} c5 {[%emt 0:00:00]} 2. Nc3 {[%emt 0:00:44]} Nc6 {[%emt 0:00:00]} 3. Nf3 {[%emt 0:00:29]} e5 {[%emt 0:01:33]} 4. e3 {[%emt 0:01:44]} Nf6 {[%emt 0:00:16]} 5. d4 {[%emt 0:01:26]} cxd4 {[%emt 0:00:14]} 6. exd4 {[%emt 0:00:09]} e4 {[%emt 0:00:10]} 7. Ne5 {[%emt 0:02:00]} Bb4 {[%emt 0:01:10]} 8. Nxc6 {[%emt 0:01:56]} dxc6 {[%emt 0:04:31]} 9. Be2 {[%emt 0:00:42]} O-O {[%emt 0:04:54]} 10. O-O {[%emt 0:02:03]} h6 {[%emt 0:09:15]} 11. Bf4 {[%emt 0:07:49]} Re8 {[%emt 0:04:36]} 12. Qd2 {[%emt 0:05:33]} Bf5 {[%emt 0:03:03]} 13. a3 {[%emt 0:05:27]} Bd6 {[%emt 0:04:40]} 14. Rad1 {[%emt 0:02:47]} Qc7 {[%emt 0:03:13]} 15. Bxd6 {[%emt 0:06:06]} Qxd6 {[%emt 0:00:08]} 16. Qe3 {[%emt 0:04:25]} Rad8 {[%emt 0:11:30]} 17. h3 {[%emt 0:05:21]} a6 {[%emt 0:06:24]} 18. Rd2 {[%emt 0:08:45]} Bg6 {[%emt 0:14:43]} 19. Rfd1 {[%emt 0:06:50]} Kh7 {[%emt 0:01:18]} 20. b4 {[%emt 0:07:53]} Qf8 {[%emt 0:02:06]} 21. d5 {[%emt 0:05:14]} Rc8 {[%emt 0:03:22]} 22. c5 {[%emt 0:03:15]} Re5 {[%emt 0:04:04]} 23. dxc6 {[%emt 0:03:35]} Rxc6 {[%emt 0:00:21]} 24. Nd5 {[%emt 0:01:06]} Ne8 {[%emt 0:05:46]} 25. Nb6 {[%emt 0:03:33]} Bf5 {[%emt 0:02:16]} 26. Qf4 {[%emt 0:02:39]} f6 {[%emt 0:00:53]} 27. Nd7 {[%emt 0:03:17]} Bxd7 {[%emt 0:00:10]} 28. Rxd7 {[%emt 0:00:05]} Nc7 {[%emt 0:02:03]} 29. Bg4 {[%emt 0:00:28]} Ne6 {[%emt 0:02:28]} 30. Bxe6 {[%emt 0:01:21]} Rcxe6 {[%emt 0:00:05]} 31. Rxb7 {[%emt 0:00:26]} e3 {[%emt 0:00:18]} 32. fxe3 {[%emt 0:00:05]} Rxe3 {[%emt 0:00:06]} 33. Rdd7 {[%emt 0:01:06]} R3e5 {[%emt 0:00:30]} 34. Rf7 {[%emt 0:03:32]} Qg8 {[%emt 0:00:03]} 35. Qg4 {[%emt 0:00:24]} 1-0

[Event "11th Dolomiti Open 2020"]
[Site "Forni di Sopra"]
[Date "2020.10.01"]
[Round "7.7"]
[White "Simonetto, Andrea"]
[Black "Blake, J Morgan"]
[Result "1-0"]
[ECO "D32"]
[WhiteElo "2195"]
[BlackElo "1982"]
[Annotator "ChessBase"]
[PlyCount "135"]
[EventDate "2020.09.26"]
[EventType "swiss"]
[EventCountry "ITA"]
[SourceTitle "playchess.com"]
[Source "ChessBase"]
[SourceQuality "1"]
[TimeControl "40/5400+30:1800+30"]

1. Nf3 {[%emt 0:00:00]} d5 {[%emt 0:00:00]} 2. e3 {[%emt 0:00:00]} Nf6 {[%emt 0:00:00]} 3. c4 {[%emt 0:00:00]} e6 {[%emt 0:00:00]} 4. Nc3 {[%emt 0:00:53]} c5 {[%emt 0:01:45]} 5. cxd5 {[%emt 0:01:50]} exd5 {[%emt 0:07:19]} 6. d4 {[%emt 0:01:06]} Nc6 {[%emt 0:01:19]} 7. Be2 {[%emt 0:03:24]} Be7 {[%emt 0:06:11]} 8. O-O {[%emt 0:03:04]} O-O {[%emt 0:00:31]} 9. b3 {[%emt 0:04:37]} Ne4 {[%emt 0:32:11]} 10. Bb2 {[%emt 0:16:30]} cxd4 {[%emt 0:05:50]} 11. Nxe4 {[%emt 0:04:59]} dxe4 {[%emt 0:00:52]} 12. Nxd4 {[%emt 0:00:26]} Nxd4 {[%emt 0:06:04]} 13. Bxd4 {[%emt 0:01:53]} Bf6 {[%emt 0:02:29]} 14. Bxf6 {[%emt 0:14:04]} Qxf6 {[%emt 0:00:04]} 15. Qd5 {[%emt 0:00:05]} Qg6 {[%emt 0:18:40]} 16. Rfd1 {[%emt 0:02:25]} Rb8 {[%emt 0:02:51]} 17. Rd4 {[%emt 0:03:08]} Bf5 {[%emt 0:02:40]} 18. Rc1 {[%emt 0:01:42]} Qe6 {[%emt 0:04:11]} 19. Qxe6 {[%emt 0:12:21]} Bxe6 {[%emt 0:02:08]} 20. Rxe4 {[%emt 0:00:43]} Rfc8 {[%emt 0:01:22]} 21. Rd1 {[%emt 0:03:23]} Rc2 {[%emt 0:01:31]} 22. Bc4 {[%emt 0:00:09]} Re8 {[%emt 0:01:15]} 23. a4 {[%emt 0:04:45]} Kf8 {[%emt 0:00:31]} 24. Bxe6 {[%emt 0:05:17]} Rxe6 {[%emt 0:00:34]} 25. Rxe6 {[%emt 0:06:31]} fxe6 {[%emt 0:00:02]} 26. Kf1 {[%emt 0:00:02]} Ke7 {[%emt 0:00:29]} 27. Rd3 {[%emt 0:00:19]} Rb2 {[%emt 0:00:18]} 28. g4 {[%emt 0:00:13]} g5 {[%emt 0:00:18]} 29. Kg2 {[%emt 0:00:14]} Ra2 {[%emt 0:00:33]} 30. Kg3 {[%emt 0:00:06]} e5 {[%emt 0:00:44]} 31. f3 {[%emt 0:00:51]} Rb2 {[%emt 0:00:05]} 32. h3 {[%emt 0:01:37]} h6 {[%emt 0:01:42]} 33. f4 {[%emt 0:01:05]} gxf4+ {[%emt 0:00:03]} 34. exf4 {[%emt 0:00:03]} e4 {[%emt 0:00:30]} 35. Re3 {[%emt 0:00:35]} Kd6 {[%emt 0:00:02]} 36. Rxe4 {[%emt 0:00:20]} Rxb3+ {[%emt 0:00:02]} 37. Kh4 {[%emt 0:00:07]} a5 {[%emt 0:00:51]} 38. Re5 {[%emt 0:05:47]} b6 {[%emt 0:00:41]} 39. Rh5 {[%emt 0:00:04]} Rb4 {[%emt 0:00:37]} 40. Rxh6+ {[%emt 0:00:15]} Kc7 {[%emt 0:01:34]} 41. f5 {[%emt 0:08:18]} Rxa4 {[%emt 0:00:35]} 42. f6 {[%emt 0:00:41]} Kd7 {[%emt 0:00:44]} 43. f7 {[%emt 0:00:22]} Rf4 {[%emt 0:06:15]} 44. Rxb6 {[%emt 0:00:07]} a4 {[%emt 0:00:16]} 45. Ra6 {[%emt 0:00:17]} Ke7 {[%emt 0:00:23]} 46. Ra7+ {[%emt 0:00:03]} Kf8 {[%emt 0:00:11]} 47. Kg5 {[%emt 0:00:24]} Rxf7 {[%emt 0:01:28]} 48. Rxa4 {[%emt 0:00:29]} Kg7 {[%emt 0:00:50]} 49. h4 {[%emt 0:00:19]} Rb7 {[%emt 0:00:30]} 50. Ra5 {[%emt 0:00:03]} Rc7 {[%emt 0:01:03]} 51. h5 {[%emt 0:00:29]} Rb7 {[%emt 0:02:36]} 52. h6+ {[%emt 0:00:39]} Kh7 {[%emt 0:00:48]} 53. Kh5 {[%emt 0:00:05]} Rb1 {[%emt 0:04:12]} 54. Ra7+ {[%emt 0:01:19]} Kh8 {[%emt 0:00:06]} 55. g5 {[%emt 0:01:10]} Rb5 {[%emt 0:03:28]} 56. Re7 {[%emt 0:02:58]} Ra5 {[%emt 0:02:56]} 57. Kg6 {[%emt 0:01:01]} Ra8 {[%emt 0:03:05]} 58. Kf6 {[%emt 0:02:07]} Rf8+ {[%emt 0:03:32]} 59. Rf7 {[%emt 0:00:08]} Ra8 {[%emt 0:00:18]} 60. g6 {[%emt 0:00:33]} Ra6+ {[%emt 0:00:43]} 61. Kg5 {[%emt 0:00:02]} Ra5+ {[%emt 0:01:02]} 62. Rf5 {[%emt 0:00:02]} Ra8 {[%emt 0:00:10]} 63. Re5 {[%emt 0:00:36]} Rb8 {[%emt 0:00:42]} 64. h7 {[%emt 0:01:01]} Kg7 {[%emt 0:03:42]} 65. Re7+ {[%emt 0:00:05]} Kh8 {[%emt 0:00:03]} 66. Kh6 {[%emt 0:00:04]} Rg8 {[%emt 0:01:00]} 67. Re8 {[%emt 0:00:08]} Rxe8 {[%emt 0:00:06]} 68. g7# {[%emt 0:00:32]} 1-0

[Event "11th Dolomiti Open 2020"]
[Site "Forni di Sopra"]
[Date "2020.10.01"]
[Round "7.9"]
[White "Ollari, Luca"]
[Black "Bisignano, Giuseppe"]
[Result "1/2-1/2"]
[ECO "B20"]
[WhiteElo "1826"]
[BlackElo "1818"]
[Annotator "NA"]
[PlyCount "115"]
[EventDate "2020.09.26"]
[EventType "swiss"]
[EventCountry "ITA"]
[SourceTitle "playchess.com"]
[Source "ChessBase"]
[SourceQuality "1"]
[TimeControl "40/5400+30:1800+30"]

1. e4 {[%emt 0:00:00]} c5 {[%emt 0:00:00]} 2. a3 {[%emt 0:00:00]} d6 {[%emt 0:00:08]} 3. b4 {[%emt 0:00:00]} a6 {[%emt 0:00:33]} 4. Bb2 {[%emt 0:03:04]} Nf6 {[%emt 0:01:07]} 5. Nc3 {[%emt 0:00:11]} Nc6 {[%emt 0:01:13]} 6. b5 {[%emt 0:03:49]} axb5 {[%emt 0:00:43]} 7. Bxb5 {[%emt 0:00:02]} e6 {[%emt 0:01:36]} 8. Nge2 {[%emt 0:00:53]} Bd7 {[%emt 0:01:06]} 9. O-O {[%emt 0:04:10]} Be7 {[%emt 0:00:06]} 10. f4 {[%emt 0:02:58]} O-O {[%emt 0:00:45]} 11. Ng3 {[%emt 0:07:36]} Qc7 {[%emt 0:02:52]} 12. Kh1 {[%emt 0:06:03]} Nd4 {[%emt 0:02:47]} 13. Bxd7 {[%emt 0:00:25]} Qxd7 {[%emt 0:00:14]} 14. Nce2 {[%emt 0:00:28]} Nxe2 {[%emt 0:04:23]} 15. Qxe2 {[%emt 0:00:24]} Ra4 {[%emt 0:05:16]} 16. d3 {[%emt 0:05:09]} Rc8 {[%emt 0:04:45]} 17. e5 {[%emt 0:17:48]} dxe5 {[%emt 0:03:35]} 18. fxe5 {[%emt 0:03:27]} Nd5 {[%emt 0:01:28]} 19. c4 {[%emt 0:00:09]} Nc7 {[%emt 0:01:09]} 20. Qf2 {[%emt 0:02:08]} Bh4 {[%emt 0:03:55]} 21. Qxc5 {[%emt 0:04:17]} Bxg3 {[%emt 0:02:16]} 22. hxg3 {[%emt 0:00:22]} b5 {[%emt 0:05:40]} 23. Qd6 {[%emt 0:06:13]} Rd8 {[%emt 0:03:43]} 24. cxb5 {[%emt 0:05:16]} Qxd6 {[%emt 0:02:26]} 25. exd6 {[%emt 0:00:02]} Nxb5 {[%emt 0:00:12]} 26. Rf4 {[%emt 0:04:34]} Rxf4 {[%emt 0:04:09]} 27. gxf4 {[%emt 0:00:03]} Rxd6 {[%emt 0:00:19]} 28. Be5 {[%emt 0:01:43]} Ra6 {[%emt 0:01:32]} 29. Rb1 {[%emt 0:01:13]} f6 {[%emt 0:00:40]} 30. Bxf6 {[%emt 0:02:57]} gxf6 {[%emt 0:01:51]} 31. Rxb5 {[%emt 0:00:06]} Rxa3 {[%emt 0:00:19]} 32. Rb6 {[%emt 0:03:37]} Kf7 {[%emt 0:00:29]} 33. Rd6 {[%emt 0:06:57]} Ra4 {[%emt 0:04:34]} 34. g3 {[%emt 0:02:16]} Ra2 {[%emt 0:00:54]} 35. Kg1 {[%emt 0:03:35]} h5 {[%emt 0:00:21]} 36. Kf1 {[%emt 0:01:08]} Rd2 {[%emt 0:00:39]} 37. Kg1 {[%emt 0:02:37]} Kg6 {[%emt 0:03:10]} 38. Rxe6 {[%emt 0:00:16]} Rxd3 {[%emt 0:00:10]} 39. Kf2 {[%emt 0:00:16]} Kf5 {[%emt 0:00:45]} 40. Re8 {[%emt 0:00:28]} h4 {[%emt 0:01:05]} 41. gxh4 {[%emt 0:31:00]} Rh3 {[%emt 0:31:23]} 42. Rh8 {[%emt 0:01:40]} Kxf4 {[%emt 0:00:17]} 43. Kg2 {[%emt 0:01:04]} Ra3 {[%emt 0:01:29]} 44. Rg8 {[%emt 0:00:37]} Ra7 {[%emt 0:00:52]} 45. Kh3 {[%emt 0:00:00]} f5 {[%emt 0:00:00]} 46. Kg2 {[%emt 0:00:00]} Re7 {[%emt 0:00:00]} 47. Rg6 {[%emt 0:00:00]} Ke3 {[%emt 0:00:00]} 48. Rf6 {[%emt 0:00:00]} f4 {[%emt 0:00:00]} 49. Kf1 {[%emt 0:00:00]} Rh7 {[%emt 0:00:00]} 50. Re6+ {[%emt 0:00:00]} Kf3 {[%emt 0:00:00]} 51. Ra6 {[%emt 0:00:00]} Rxh4 {[%emt 0:00:00]} 52. Ra3+ {[%emt 0:00:00]} Kg4 {[%emt 0:00:00]} 53. Kg2 {[%emt 0:00:00]} Rh6 {[%emt 0:00:00]} 54. Rb3 {[%emt 0:00:00]} Rc6 {[%emt 0:00:00]} 55. Kf1 {[%emt 0:00:00]} f3 {[%emt 0:00:00]} 56. Rb8 {[%emt 0:00:00]} Rc1+ {[%emt 0:00:00]} 57. Kf2 {[%emt 0:00:00]} Rc2+ {[%emt 0:00:00]} 58. Kf1 {[%emt 0:07:59]} 1/2-1/2

[Event "11th Dolomiti Open 2020"]
[Site "Forni di Sopra"]
[Date "2020.10.02"]
[Round "8.1"]
[White "Cumming, Rhys"]
[Black "Valsecchi, Alessio"]
[Result "0-1"]
[ECO "C03"]
[WhiteElo "2299"]
[BlackElo "2491"]
[Annotator "ChessBase"]
[PlyCount "102"]
[EventDate "2020.09.26"]
[EventType "swiss"]
[EventCountry "ITA"]
[SourceTitle "playchess.com"]
[Source "ChessBase"]
[SourceQuality "1"]
[TimeControl "40/5400+30:1800+30"]

1. e4 {[%emt 0:05:23]} e6 {[%emt 0:00:00]} 2. d4 {[%emt 0:00:04]} d5 {[%emt 0:00:00]} 3. Nd2 {[%emt 0:00:03]} h6 {[%emt 0:00:16]} 4. Ngf3 {[%emt 0:04:41]} Nf6 {[%emt 0:00:32]} 5. exd5 {[%emt 0:03:43]} exd5 {[%emt 0:00:16]} 6. Bd3 {[%emt 0:01:55]} Nc6 {[%emt 0:03:16]} 7. c3 {[%emt 0:03:31]} Bd6 {[%emt 0:00:13]} 8. O-O {[%emt 0:02:19]} O-O {[%emt 0:03:57]} 9. Re1 {[%emt 0:01:42]} Re8 {[%emt 0:03:20]} 10. Rxe8+ {[%emt 0:04:31]} Qxe8 {[%emt 0:00:10]} 11. Nf1 {[%emt 0:00:06]} Be6 {[%emt 0:10:01]} 12. Ng3 {[%emt 0:03:23]} Qd7 {[%emt 0:01:43]} 13. Nh4 {[%emt 0:05:20]} Bxg3 {[%emt 0:05:12]} 14. hxg3 {[%emt 0:01:11]} Re8 {[%emt 0:00:11]} 15. Qc2 {[%emt 0:05:01]} Ne4 {[%emt 0:08:33]} 16. Be3 {[%emt 0:05:23]} g5 {[%emt 0:05:27]} 17. Nf3 {[%emt 0:01:02]} Bf5 {[%emt 0:00:52]} 18. Re1 {[%emt 0:06:33]} f6 {[%emt 0:01:08]} 19. Bc1 {[%emt 0:04:34]} Kg7 {[%emt 0:00:39]} 20. Re3 {[%emt 0:02:05]} Re7 {[%emt 0:08:13]} 21. Nd2 {[%emt 0:08:43]} Nd6 {[%emt 0:00:54]} 22. Nf1 {[%emt 0:00:41]} b5 {[%emt 0:06:01]} 23. Rxe7+ {[%emt 0:07:53]} Nxe7 {[%emt 0:01:41]} 24. b3 {[%emt 0:00:53]} a6 {[%emt 0:19:30]} 25. Ba3 {[%emt 0:02:34]} Qe6 {[%emt 0:01:21]} 26. Ne3 {[%emt 0:02:41]} Bxd3 {[%emt 0:00:48]} 27. Qxd3 {[%emt 0:00:05]} Nef5 {[%emt 0:01:42]} 28. Nxf5+ {[%emt 0:03:47]} Nxf5 {[%emt 0:00:40]} 29. Kf1 {[%emt 0:01:12]} h5 {[%emt 0:02:31]} 30. Qe2 {[%emt 0:00:28]} Qe4 {[%emt 0:03:49]} 31. Qxe4 {[%emt 0:02:02]} dxe4 {[%emt 0:00:02]} 32. Ke2 {[%emt 0:03:03]} c6 {[%emt 0:00:21]} 33. Bc5 {[%emt 0:03:35]} Kf7 {[%emt 0:00:02]} 34. c4 {[%emt 0:03:37]} Ke6 {[%emt 0:00:06]} 35. Kd2 {[%emt 0:01:00]} bxc4 {[%emt 0:01:09]} 36. bxc4 {[%emt 0:00:05]} e3+ {[%emt 0:00:40]} 37. Ke2 {[%emt 0:00:33]} exf2 {[%emt 0:02:39]} 38. Kxf2 {[%emt 0:00:01]} g4 {[%emt 0:00:08]} 39. a3 {[%emt 0:01:31]} Kd7 {[%emt 0:00:05]} 40. d5 {[%emt 0:00:39]} cxd5 {[%emt 0:09:05]} 41. cxd5 {[%emt 0:30:14]} Ne7 {[%emt 0:32:15]} 42. Ke3 {[%emt 0:00:00]} Nxd5+ {[%emt 0:00:00]} 43. Ke4 {[%emt 0:00:00]} Ke6 {[%emt 0:00:00]} 44. Bf2 {[%emt 0:00:00]} f5+ {[%emt 0:00:00]} 45. Kd4 {[%emt 0:00:00]} Kd6 {[%emt 0:00:00]} 46. Be1 {[%emt 0:00:00]} Nf6 {[%emt 0:00:00]} 47. Bb4+ {[%emt 0:00:00]} Ke6 {[%emt 0:00:00]} 48. Kc5 {[%emt 0:00:00]} Ne4+ {[%emt 0:00:00]} 49. Kb6 {[%emt 0:00:00]} Nxg3 {[%emt 0:00:00]} 50. Bc5 {[%emt 0:00:00]} h4 {[%emt 0:00:00]} 51. Kxa6 {[%emt 0:01:02]} Ne2 {[%emt 0:00:00]} 0-1

[Event "11th Dolomiti Open 2020"]
[Site "Forni di Sopra"]
[Date "2020.10.02"]
[Round "8.2"]
[White "Basso, Pier Luigi"]
[Black "Moroni, Luca Jr"]
[Result "1/2-1/2"]
[ECO "D14"]
[WhiteElo "2603"]
[BlackElo "2530"]
[Annotator "RC"]
[PlyCount "23"]
[EventDate "2020.09.26"]
[EventType "swiss"]
[EventCountry "ITA"]
[SourceTitle "playchess.com"]
[Source "ChessBase"]
[SourceQuality "1"]
[TimeControl "40/5400+30:1800+30"]

1. d4 {[%emt 0:00:00]} d5 {[%emt 0:00:00]} 2. c4 {[%emt 0:00:00]} c6 {[%emt 0:00:00]} 3. Nf3 {[%emt 0:00:00]} Nf6 {[%emt 0:00:00]} 4. cxd5 {[%emt 0:00:00]} cxd5 {[%emt 0:00:00]} 5. Nc3 {[%emt 0:00:00]} Nc6 {[%emt 0:00:00]} 6. Bf4 {[%emt 0:00:00]} Bf5 {[%emt 0:00:00]} 7. e3 {[%emt 0:00:00]} e6 {[%emt 0:00:00]} 8. Bd3 {[%emt 0:00:00]} Bxd3 {[%emt 0:00:00]} 9. Qxd3 {[%emt 0:00:04]} Bd6 {[%emt 0:00:00]} 10. Bxd6 {[%emt 0:00:06]} Qxd6 {[%emt 0:00:00]} 11. O-O {[%emt 0:00:05]} O-O {[%emt 0:00:04]} 12. Rac1 {[%emt 0:00:03]} 1/2-1/2

[Event "11th Dolomiti Open 2020"]
[Site "Forni di Sopra"]
[Date "2020.10.02"]
[Round "8.4"]
[White "Seresin, Francesco"]
[Black "Blohberger, Felix"]
[Result "1/2-1/2"]
[ECO "A17"]
[WhiteElo "2371"]
[BlackElo "2467"]
[Annotator "ChessBase"]
[PlyCount "96"]
[EventDate "2020.09.26"]
[EventType "swiss"]
[EventCountry "ITA"]
[SourceTitle "playchess.com"]
[Source "ChessBase"]
[SourceQuality "1"]
[TimeControl "40/5400+30:1800+30"]

1. c4 {[%emt 0:00:00]} e6 {[%emt 0:00:00]} 2. Nf3 {[%emt 0:00:52]} Nf6 {[%emt 0:00:05]} 3. Nc3 {[%emt 0:00:32]} Bb4 {[%emt 0:00:29]} 4. Qc2 {[%emt 0:00:30]} O-O {[%emt 0:00:58]} 5. e3 {[%emt 0:00:44]} b6 {[%emt 0:02:17]} 6. a3 {[%emt 0:02:23]} Bxc3 {[%emt 0:01:01]} 7. Qxc3 {[%emt 0:00:10]} Bb7 {[%emt 0:00:06]} 8. Be2 {[%emt 0:00:50]} d6 {[%emt 0:01:49]} 9. O-O {[%emt 0:01:36]} Nbd7 {[%emt 0:03:11]} 10. b4 {[%emt 0:00:40]} e5 {[%emt 0:04:27]} 11. d3 {[%emt 0:03:15]} h6 {[%emt 0:04:14]} 12. Bb2 {[%emt 0:02:12]} Qe7 {[%emt 0:03:27]} 13. Nd2 {[%emt 0:07:37]} Rfe8 {[%emt 0:08:47]} 14. Rae1 {[%emt 0:11:24]} Nf8 {[%emt 0:02:11]} 15. Qc2 {[%emt 0:11:15]} Ng6 {[%emt 0:03:17]} 16. Bf3 {[%emt 0:06:20]} Bxf3 {[%emt 0:05:05]} 17. Nxf3 {[%emt 0:00:46]} Nd7 {[%emt 0:05:05]} 18. Nd2 {[%emt 0:07:37]} a5 {[%emt 0:09:22]} 19. Bc3 {[%emt 0:03:29]} axb4 {[%emt 0:02:26]} 20. axb4 {[%emt 0:01:21]} Nf6 {[%emt 0:04:04]} 21. d4 {[%emt 0:09:14]} Qd7 {[%emt 0:05:23]} 22. dxe5 {[%emt 0:04:36]} dxe5 {[%emt 0:00:29]} 23. Ra1 {[%emt 0:01:24]} Rxa1 {[%emt 0:05:41]} 24. Rxa1 {[%emt 0:00:30]} Qg4 {[%emt 0:00:25]} 25. f3 {[%emt 0:08:57]} Qe6 {[%emt 0:14:03]} 26. Qd3 {[%emt 0:07:29]} e4 {[%emt 0:05:43]} 27. Nxe4 {[%emt 0:01:26]} Nxe4 {[%emt 0:00:13]} 28. Qxe4 {[%emt 0:00:25]} Qxe4 {[%emt 0:00:09]} 29. fxe4 {[%emt 0:00:04]} Rxe4 {[%emt 0:00:15]} 30. Bd4 {[%emt 0:00:44]} Nf4 {[%emt 0:04:44]} 31. Rd1 {[%emt 0:05:35]} Ne6 {[%emt 0:01:57]} 32. c5 {[%emt 0:00:09]} bxc5 {[%emt 0:01:19]} 33. bxc5 {[%emt 0:00:18]} f5 {[%emt 0:00:40]} 34. g3 {[%emt 0:00:20]} Kf7 {[%emt 0:00:18]} 35. Kf2 {[%emt 0:00:19]} c6 {[%emt 0:01:23]} 36. Rb1 {[%emt 0:01:04]} Nxd4 {[%emt 0:01:02]} 37. exd4 {[%emt 0:00:05]} Rxd4 {[%emt 0:01:03]} 38. Rb6 {[%emt 0:00:14]} Rd2+ {[%emt 0:00:16]} 39. Kg1 {[%emt 0:00:23]} Kg6 {[%emt 0:01:04]} 40. Rxc6+ {[%emt 0:00:40]} Kh5 {[%emt 0:00:35]} 41. h3 {[%emt 0:31:32]} Rc2 {[%emt 0:01:29]} 42. Rc8 {[%emt 0:00:00]} Kg5 {[%emt 0:02:04]} 43. Rc7 {[%emt 0:00:00]} g6 {[%emt 0:01:43]} 44. Rc6 {[%emt 0:00:00]} Kh5 {[%emt 0:00:20]} 45. Rc8 {[%emt 0:00:00]} Kg5 {[%emt 0:01:30]} 46. Rc6 {[%emt 0:00:00]} Rc4 {[%emt 0:01:30]} 47. Kg2 {[%emt 0:00:00]} Rc3 {[%emt 0:02:48]} 48. Kh2 {[%emt 0:00:00]} Rc2+ {[%emt 0:03:00]} 1/2-1/2

[Event "11th Dolomiti Open 2020"]
[Site "Forni di Sopra"]
[Date "2020.10.02"]
[Round "8.5"]
[White "Bonade, Massimo"]
[Black "Bellia, Fabrizio"]
[Result "0-1"]
[ECO "C28"]
[WhiteElo "2160"]
[BlackElo "2421"]
[Annotator "ChessBase"]
[PlyCount "98"]
[EventDate "2020.09.26"]
[EventType "swiss"]
[EventCountry "ITA"]
[SourceTitle "playchess.com"]
[Source "ChessBase"]
[SourceQuality "1"]
[TimeControl "40/5400+30:1800+30"]

1. e4 {[%emt 0:00:00]} e5 {[%emt 0:00:00]} 2. Nc3 {[%emt 0:00:00]} Nf6 {[%emt 0:00:00]} 3. Bc4 {[%emt 0:00:00]} Nc6 {[%emt 0:00:03]} 4. d3 {[%emt 0:00:03]} Na5 {[%emt 0:00:19]} 5. Nge2 {[%emt 0:00:10]} c6 {[%emt 0:00:49]} 6. a4 {[%emt 0:00:14]} Nxc4 {[%emt 0:00:06]} 7. dxc4 {[%emt 0:00:05]} d6 {[%emt 0:00:27]} 8. O-O {[%emt 0:02:20]} Be7 {[%emt 0:00:29]} 9. Qd3 {[%emt 1:31:38]} O-O {[%emt 0:01:46]} 10. b3 {[%emt 0:00:26]} Be6 {[%emt 0:00:53]} 11. Ba3 {[%emt 0:01:18]} Qc7 {[%emt 0:02:16]} 12. Rad1 {[%emt 1:30:08]} Rad8 {[%emt 0:01:08]} 13. Qe3 {[%emt 0:13:26]} Ng4 {[%emt 0:05:35]} 14. Qc1 {[%emt 0:06:41]} f5 {[%emt 1:23:09]} 15. h3 {[%emt 0:00:34]} Nh6 {[%emt 0:11:14]} 16. f3 {[%emt 0:04:54]} f4 {[%emt 0:03:05]} 17. Rd3 {[%emt 0:07:33]} Rf6 {[%emt 0:03:58]} 18. Rfd1 {[%emt 0:03:32]} Nf7 {[%emt 0:04:42]} 19. Kf1 {[%emt 0:01:02]} Rg6 {[%emt 0:57:03]} 20. Ng1 {[%emt 0:02:12]} Qb6 {[%emt 0:04:59]} 21. Qd2 {[%emt 0:02:58]} Bh4 {[%emt 0:01:21]} 22. Qe2 {[%emt 0:07:50]} Bc8 {[%emt 0:08:41]} 23. R1d2 {[%emt 0:02:44]} h6 {[%emt 0:01:35]} 24. Nd1 {[%emt 0:02:53]} Kh7 {[%emt 0:04:28]} 25. Nb2 {[%emt 0:01:53]} c5 {[%emt 0:02:51]} 26. Nd1 {[%emt 0:00:39]} Qc7 {[%emt 0:00:12]} 27. Nc3 {[%emt 0:04:57]} Qe7 {[%emt 0:00:05]} 28. Nd5 {[%emt 0:04:08]} Qg5 {[%emt 0:00:05]} 29. b4 {[%emt 0:01:13]} cxb4 {[%emt 0:00:21]} 30. Bxb4 {[%emt 0:23:27]} b6 {[%emt 0:05:40]} 31. a5 {[%emt 0:00:16]} Ba6 {[%emt 0:07:40]} 32. Rc3 {[%emt 0:05:25]} Rc8 {[%emt 0:02:33]} 33. axb6 {[%emt 0:00:40]} axb6 {[%emt 0:00:08]} 34. Nxb6 {[%emt 0:00:48]} Rb8 {[%emt 0:00:43]} 35. Nd5 {[%emt 0:00:22]} Qg3 {[%emt 0:00:20]} 36. Rd1 {[%emt 0:05:11]} Rc8 {[%emt 0:01:21]} 37. Nb6 {[%emt 0:02:17]} Rc6 {[%emt 0:00:08]} 38. Ba5 {[%emt 0:03:10]} Nd8 {[%emt 0:00:57]} 39. Rd5 {[%emt 0:08:10]} Nb7 {[%emt 0:02:56]} 40. Nd7 {[%emt 0:02:00]} Kg8 {[%emt 0:02:51]} 41. Rb5 {[%emt 0:11:11]} Nxa5 {[%emt 0:40:42]} 42. Rxa5 {[%emt 0:00:33]} Re6 {[%emt 0:01:14]} 43. Ra4 {[%emt 0:04:34]} Re8 {[%emt 0:00:36]} 44. Rb3 {[%emt 0:02:04]} d5 {[%emt 0:03:08]} 45. Nb6 {[%emt 0:05:50]} dxc4 {[%emt 0:00:37]} 46. Rb1 {[%emt 0:01:45]} Bc8 {[%emt 0:11:04]} 47. Nxc4 {[%emt 0:00:23]} Ba6 {[%emt 0:02:28]} 48. Rba1 {[%emt 0:05:03]} Ree6 {[%emt 0:00:37]} 49. Rb4 {[%emt 0:01:36]} Bxc4 {[%emt 0:01:13]} 0-1

[Event "11th Dolomiti Open 2020"]
[Site "Forni di Sopra"]
[Date "2020.10.02"]
[Round "8.6"]
[White "Barp, Alberto"]
[Black "Simonetto, Andrea"]
[Result "1/2-1/2"]
[ECO "A50"]
[WhiteElo "2377"]
[BlackElo "2195"]
[Annotator "ChessBase"]
[PlyCount "68"]
[EventDate "2020.09.26"]
[EventType "swiss"]
[EventCountry "ITA"]
[SourceTitle "playchess.com"]
[Source "ChessBase"]
[SourceQuality "1"]
[TimeControl "40/5400+30:1800+30"]

1. d4 {[%emt 0:00:00]} Nf6 {[%emt 0:00:00]} 2. c4 {[%emt 0:00:00]} b6 {[%emt 0:00:00]} 3. f3 {[%emt 0:01:36]} Nc6 {[%emt 0:01:28]} 4. Nc3 {[%emt 0:01:03]} e5 {[%emt 0:00:22]} 5. d5 {[%emt 0:00:04]} Ne7 {[%emt 0:00:06]} 6. e4 {[%emt 0:00:16]} Ng6 {[%emt 0:00:44]} 7. Nge2 {[%emt 0:01:33]} Nh5 {[%emt 0:12:51]} 8. g3 {[%emt 0:10:35]} Bc5 {[%emt 0:03:02]} 9. a3 {[%emt 0:04:32]} a5 {[%emt 0:02:24]} 10. Na4 {[%emt 0:07:03]} Be7 {[%emt 0:01:20]} 11. Be3 {[%emt 0:00:17]} Ba6 {[%emt 0:05:22]} 12. Nec3 {[%emt 0:04:58]} d6 {[%emt 0:09:09]} 13. Bf2 {[%emt 0:09:14]} Nf6 {[%emt 0:02:23]} 14. h4 {[%emt 0:00:11]} Nd7 {[%emt 0:03:16]} 15. b4 {[%emt 0:06:24]} h5 {[%emt 0:03:20]} 16. Bd3 {[%emt 0:06:32]} Ngf8 {[%emt 0:02:48]} 17. Qd2 {[%emt 0:06:43]} g5 {[%emt 0:01:54]} 18. hxg5 {[%emt 0:04:55]} Bxg5 {[%emt 0:00:17]} 19. Be3 {[%emt 0:01:27]} Bxe3 {[%emt 0:01:34]} 20. Qxe3 {[%emt 0:00:45]} Ng6 {[%emt 0:00:06]} 21. bxa5 {[%emt 0:04:06]} bxa5 {[%emt 0:01:47]} 22. O-O-O {[%emt 0:06:45]} h4 {[%emt 0:11:18]} 23. gxh4 {[%emt 0:03:36]} Rxh4 {[%emt 0:00:14]} 24. Nb5 {[%emt 0:01:15]} Bxb5 {[%emt 0:03:57]} 25. cxb5 {[%emt 0:00:02]} Qf6 {[%emt 0:07:45]} 26. Rxh4 {[%emt 0:04:08]} Nxh4 {[%emt 0:02:04]} 27. Be2 {[%emt 0:02:18]} Qf4 {[%emt 0:00:30]} 28. Qxf4 {[%emt 0:00:28]} exf4 {[%emt 0:00:01]} 29. Kd2 {[%emt 0:00:35]} O-O-O {[%emt 0:05:12]} 30. Rh1 {[%emt 0:03:25]} Ng6 {[%emt 0:01:02]} 31. Rh7 {[%emt 0:07:09]} Nge5 {[%emt 0:00:50]} 32. Rh4 {[%emt 0:00:37]} Ng6 {[%emt 0:00:11]} 33. Rh7 {[%emt 0:00:02]} Nge5 {[%emt 0:00:02]} 34. Rh4 {[%emt 0:01:45]} Ng6 {[%emt 0:00:12]} 1/2-1/2